fUST/lending_fUST_20240910
["ID","MTS","AMOUNT","RATE_DAILY","PERIOD"]
[337659661,1725923442916,-500.0,0.00023821,2]
[337659663,1725923442932,-500.0,0.00023821,2]
[337659664,1725923442942,-501.32120845,0.00023821,2]
[337659665,1725923442951,-500.0,0.00023821,2]
[337659666,1725923442960,-657.44,0.00023821,2]
[337659667,1725923442970,-826.71,0.00023821,2]
[337659668,1725923442979,-835.07,0.00023821,2]
[337659669,1725923442988,-2017.82,0.00023821,2]
[337659670,1725923442997,-500.0,0.00023821,2]
[337659671,1725923443006,-500.0,0.00023821,2]
[337659672,1725923443015,-596.46,0.00023821,2]
[337659673,1725923443025,-500.0,0.00023821,2]
[337659674,1725923443034,-500.0,0.00023821,2]
[337659675,1725923443047,-216.55614787,0.00023821,2]
[337659676,1725923443056,-501.32763763,0.00023821,2]
[337659677,1725923443065,-500.0,0.00023821,2]
[337659678,1725923443075,-500.0,0.00023821,2]
[337659679,1725923443085,-500.0,0.00023821,2]
[337659680,1725923443097,-500.0,0.00023821,2]
[337659681,1725923443106,-500.0,0.00023821,2]
[337659682,1725923443118,-937.74,0.00023821,2]
[337659683,1725923443128,-1030.58,0.00023821,2]
[337659684,1725923443138,-1985.75,0.00023821,2]
[337659685,1725923443151,-2026.35,0.00023821,2]
[337659686,1725923443161,-545.67,0.00023821,2]
[337659687,1725923443173,-500.0,0.00023821,2]
[337659688,1725923443182,-500.0,0.00023821,2]
[337659689,1725923443192,-500.0,0.00023821,2]
[337659690,1725923443201,-1563.58,0.00023821,2]
[337659691,1725923443213,-500.0,0.00023821,2]
[337659692,1725923443223,-500.0,0.00023821,2]
[337659693,1725923443233,-500.0,0.00023821,2]
[337659694,1725923443244,-500.0,0.00023821,2]
[337659695,1725923443254,-500.0,0.00023821,2]
[337659696,1725923443263,-500.0,0.00023821,2]
[337659697,1725923443272,-500.0,0.00023821,2]
[337659698,1725923443281,-1547.47,0.00023821,2]
[337659699,1725923443290,-500.0,0.00023821,2]
[337659700,1725923443300,-1434.89,0.00023821,2]
[337659701,1725923443309,-707.01,0.00023821,2]
[337659703,1725923443319,-500.0,0.00023821,2]
[337659704,1725923443328,-500.0,0.00023821,2]
[337659705,1725923443338,-1843.84,0.00023821,2]
[337659706,1725923443347,-968.09,0.00023821,2]
[337659707,1725923443356,-663.31,0.00023821,2]
[337659708,1725923443366,-151.0,0.00023821,7]
[337659709,1725923443375,-787.61,0.00023821,2]
[337659710,1725923443385,-500.0,0.00023821,2]
[337659711,1725923443394,-500.0,0.00023821,2]
[337659713,1725923443403,-151.0,0.00023821,7]
[337659715,1725923443413,-151.0,0.00023821,7]
[337659716,1725923443432,-500.0,0.00023821,2]
[337659717,1725923443442,-500.0,0.00023821,2]
[337659718,1725923443452,-1725.81,0.00023821,2]
[337659719,1725923443462,-259.087852,0.00023821,7]
[337659720,1725923443471,-500.0,0.00023821,2]
[337659721,1725923443481,-151.0,0.00023821,7]
[337659722,1725923443490,-1367.77,0.00023821,2]
[337659723,1725923443499,-500.98323211,0.00023821,2]
[337659724,1725923443508,-1232.55,0.00023821,2]
[337659725,1725923443518,-500.0,0.00023821,2]
[337659726,1725923443527,-151.0,0.00023821,7]
[337659727,1725923443536,-502.71,0.00023821,2]
[337659728,1725923443546,-500.0,0.00023821,2]
[337659729,1725923443555,-151.0,0.00023821,7]
[337659730,1725923443564,-151.0,0.00023821,7]
[337659731,1725923443573,-500.0,0.00023821,2]
[337659732,1725923443583,-500.0,0.00023821,2]
[337659733,1725923443592,-590.87,0.00023821,2]
[337659734,1725923443601,-500.0,0.00023821,2]
[337659735,1725923443610,-500.0,0.00023821,2]
[337659736,1725923443619,-228.74912,0.00023821,7]
[337659737,1725923443628,-530.53411282,0.00023821,2]
[337659738,1725923443637,-500.0,0.00023821,2]
[337659739,1725923443647,-228.74912,0.00023821,7]
[337659740,1725923443658,-500.0,0.00023821,2]
[337659741,1725923443669,-500.0,0.00023821,2]
[337659742,1725923443679,-41212.93,0.00023822,2]
[337659743,1725923443688,-500.0,0.00023822,2]
[337659744,1725923443697,-587.04,0.00023822,2]
[337659745,1725923443707,-3667.2,0.00023822,2]
[337659746,1725923443717,-500.0,0.00023822,2]
[337659747,1725923443726,-552.62,0.00023822,2]
[337659748,1725923443736,-777.91,0.00023822,2]
[337659749,1725923443745,-2017.46,0.00023822,2]
[337659750,1725923443756,-500.0,0.00023822,2]
[337659751,1725923443765,-500.0,0.00023822,2]
[337659752,1725923443902,-1405.54,0.00023822,2]
[337659753,1725923443912,-2089.05,0.00023822,2]
[337659754,1725923443923,-4236.31,0.00023822,2]
[337659755,1725923443933,-500.0,0.00023822,2]
[337659756,1725923443943,-500.0,0.00023822,2]
[337659757,1725923443951,-500.0,0.00023822,2]
[337659758,1725923443961,-500.0,0.00023822,2]
[337659759,1725923443970,-500.0,0.00023822,2]
[337659760,1725923443980,-540.37,0.00023822,2]
[337659761,1725923443989,-500.0,0.00023822,2]
[337659762,1725923443998,-1579.68,0.00023822,2]
[337659763,1725923444007,-661.22,0.00023822,2]
[337659764,1725923444016,-1266.18,0.00023822,2]
[337659765,1725923444026,-805.8,0.00023825,3]
[337659766,1725923444039,-402.9,0.00023825,3]
[337659767,1725923444048,-500.0,0.00023835,2]
[337659768,1725923444057,-8454.39,0.00023835,2]
[337659769,1725923444066,-1081.64,0.00023835,2]
[337659771,1725923444076,-1371.6,0.00023835,2]
[337659772,1725923444085,-151.0,0.00023835,7]
[337659774,1725923444094,-151.0,0.00023835,7]
[337659776,1725923444103,-853.7,0.00023835,2]
[337659777,1725923444112,-2919.35,0.00023835,2]
[337659778,1725923444124,-515.89120289,0.00023835,2]
[337659779,1725923444134,-6443.6,0.00023835,2]
[337659780,1725923444143,-500.0,0.00023835,2]
[337659781,1725923444153,-1204.77,0.00023835,2]
[337659782,1725923444163,-1420.08,0.00023835,2]
[337659783,1725923444174,-151.0,0.00023835,7]
[337659784,1725923444185,-151.0,0.00023835,7]
[337659785,1725923444194,-2184.79,0.00023835,2]
[337659786,1725923444204,-1445.75,0.00023835,2]
[337659787,1725923444214,-1207.63,0.00023835,2]
[337659788,1725923444225,-500.53596247,0.0002384,2]
[337659789,1725923444234,-159.27092859,0.0002384,2]
[337659790,1725923444244,-500.0,0.0002384,2]
[337659791,1725923444254,-500.0,0.0002384,2]
[337659792,1725923444264,-500.9047182,0.0002384,2]
[337659793,1725923444273,-160.0,0.0002384,2]
[337659794,1725923444282,-500.0,0.0002384,2]
[337659795,1725923444292,-166.666666,0.00023841,2]
[337659796,1725923444301,-4601.91,0.00023864,2]
[337659797,1725923444310,-4297.15,0.00023864,2]
[337659798,1725923444320,-151.0,0.00023864,7]
[337659799,1725923444329,-1569.13,0.00023864,2]
[337659800,1725923444339,-151.0,0.00023864,7]
[337659801,1725923444348,-151.0,0.00023864,7]
[337659802,1725923444357,-152.328802,0.00023864,7]
[337659803,1725923444367,-151.0,0.00023864,7]
[337659804,1725923444376,-579.698223,0.00023864,7]
[337659805,1725923444386,-151.0,0.00023864,7]
[337659806,1725923444398,-151.0,0.00023864,7]
[337659807,1725923444409,-500.0,0.00023864,2]
[337659808,1725923444421,-579.698223,0.00023864,7]
[337659809,1725923444431,-1667.04,0.00023864,2]
[337659810,1725923444441,-500.0,0.00023864,2]
[337659811,1725923444450,-57302.22,0.00023864,2]
[337659812,1725923444460,-1965.41,0.00023864,2]
[337659813,1725923444469,-1948.39,0.00023864,2]
[337659814,1725923444480,-304.55000664,0.0002387,2]
[337659815,1725923444491,-500.0,0.0002387,2]
[337659816,1725923444500,-501.66479479,0.0002387,2]
[337659817,1725923444511,-268.97058416,0.0002387,2]
[337659818,1725923444522,-529.47506892,0.00023873,2]
[337659819,1725923444532,-5448.08350194,0.00023946,2]
[337659820,1725923444542,-500.0,0.00023964,2]
[337659821,1725923444551,-500.0,0.00023964,2]
[337659822,1725923444561,-500.0,0.00023964,2]
[337659823,1725923444570,-500.0,0.00023964,2]
[337659824,1725923444579,-448.13303859,0.00023964,2]
[337659825,1725923444589,-500.0,0.00023964,2]
[337659826,1725923444598,-500.0,0.00023964,2]
[337659827,1725923444607,-500.0,0.00023964,2]
[337659828,1725923444618,-500.0,0.00023964,2]
[337659829,1725923444628,-500.0,0.00023964,2]
[337659830,1725923444637,-500.0,0.00023964,2]
[337659831,1725923444647,-500.0,0.00023964,2]
[337659832,1725923444657,-187.28387434,0.00023964,2]
[337659833,1725923444666,-597.7,0.00023964,2]
[337659834,1725923444675,-500.0,0.00023964,2]
[337659835,1725923444684,-500.0,0.00023964,2]
[337659836,1725923444693,-741.29,0.00023964,2]
[337659837,1725923444702,-500.0,0.00023964,2]
[337659838,1725923444712,-500.0,0.00023964,2]
[337659839,1725923444722,-500.0,0.00023964,2]
[337659840,1725923444731,-500.0,0.00023964,2]
[337659841,1725923444740,-554.06,0.00023964,2]
[337659842,1725923444749,-500.0,0.00023964,2]
[337659843,1725923444758,-500.0,0.00023964,2]
[337659844,1725923444767,-500.0,0.00023964,2]
[337659845,1725923444777,-500.0,0.00023964,2]
[337659846,1725923444786,-500.0,0.00023964,2]
[337659847,1725923444795,-2421.47,0.00023964,2]
[337659848,1725923444805,-500.0,0.00023964,2]
[337659849,1725923444816,-816.47,0.00023964,2]
[337659850,1725923444827,-4452.8,0.00023964,2]
[337659851,1725923444838,-500.0,0.00023964,2]
[337659852,1725923444847,-500.0,0.00023964,2]
[337659853,1725923444858,-500.0,0.00023964,2]
[337659854,1725923444867,-500.0,0.00023964,2]
[337659855,1725923444876,-163.98172215,0.00023964,2]
[337659856,1725923445183,-336.01827785,0.00023964,2]
[337659857,1725923445192,-2504.29496931,0.00023964,2]
[337659858,1725923445421,-332.38819351,0.00023821,2]
[337659859,1725923445465,-167.61180649,0.00023821,2]
[337659860,1725923445474,-1060.54,0.00023835,2]
[337659861,1725923445483,-1095.48503069,0.00023964,2]
[337659862,1725923445493,-500.0,0.00023964,2]
[337659863,1725923445502,-500.0,0.00023964,2]
[337659864,1725923445511,-500.0,0.00023964,2]
[337659865,1725923445520,-500.0,0.00023964,2]
[337659866,1725923445530,-4691.32,0.00023964,2]
[337659867,1725923445539,-2223.2,0.00023964,2]
[337659868,1725923445548,-500.0,0.00023964,2]
[337659869,1725923445558,-1098.21,0.00023964,2]
[337659870,1725923445567,-500.0,0.00023964,2]
[337659871,1725923445576,-3643.55,0.00023964,2]
[337659872,1725923445586,-1124.43,0.00023964,2]
[337659873,1725923445595,-778.89,0.00023964,2]
[337659874,1725923445604,-688.65,0.00023964,2]
[337659875,1725923445613,-637.43,0.00023964,2]
[337659876,1725923445623,-500.0,0.00023964,2]
[337659877,1725923445632,-500.0,0.00023964,2]
[337659878,1725923445641,-500.0,0.00023964,2]
[337659879,1725923445651,-1328.08,0.00023964,2]
[337659880,1725923445660,-691.79,0.00023964,2]
[337659881,1725923445670,-500.0,0.00023964,2]
[337659882,1725923445680,-500.0,0.00023964,2]
[337659883,1725923445690,-500.0,0.00023964,2]
[337659884,1725923445699,-844.48,0.00023964,2]
[337659885,1725923445708,-500.0,0.00024015,2]
[337659886,1725923445718,-500.0,0.00024015,2]
[337659887,1725923445730,-500.0,0.00024056,2]
[337659888,1725923445740,-161.74589511,0.00024056,2]
[337659895,1725923446242,-250.0,0.00022993,2]
[337659896,1725923446253,-151.0,0.00023306,7]
[337659897,1725923446263,-151.0,0.0002369,7]
[337659898,1725923446273,-500.0,0.00023821,2]
[337659899,1725923446284,-151.0,0.00023835,7]
[337659900,1725923446294,-338.25410489,0.00024056,2]
[337659901,1725923446304,-500.0,0.00024075,2]
[337659902,1725923446313,-500.0,0.00024095,2]
[337659903,1725923446323,-544.27739587,0.00024095,2]
[337659904,1725923446332,-500.0,0.00024095,2]
[337659905,1725923446342,-628.78,0.00024095,2]
[337659906,1725923446352,-500.0,0.00024095,2]
[337659907,1725923446361,-500.0,0.00024095,2]
[337659908,1725923446370,-106.83132427,0.00024095,2]
[337659914,1725923768965,-250.0,0.00020818,2]
[337659917,1725923812262,-176.944261,0.00020544,2]
[337659918,1725923894449,25000.0,0.00021907,3]
[337659921,1725923941289,-300.0,0.00020811,2]
[337659922,1725923946439,-300.0,0.00020811,2]
[337659926,1725923981746,-250.0,0.00020812,2]
[337659927,1725923982313,-250.0,0.00020812,2]
[337659928,1725923983027,-250.0,0.00020812,2]
[337659929,1725923983632,-250.0,0.00020812,2]
[337659930,1725923985315,-23900.0,0.00020812,2]
[337659944,1725924473337,30000.0,0.0002,2]
[337659956,1725924521744,8942.76653425,0.00014,2]
[337659957,1725924521866,43116.21936691,0.0002,2]
[337659958,1725924522773,39587.57769964,0.0001999,2]
[337659959,1725924526403,819.12680845,0.00026,60]
[337660032,1725924638568,-300.0,0.00020278,2]
[337660034,1725924638578,-300.0,0.00020278,2]
[337660036,1725924638589,-24900.0,0.00020279,2]
[337660038,1725924638600,-168.8322633,0.00020315,2]
[337660040,1725924638611,-491.248192,0.00020359,2]
[337660043,1725924638623,-1017.62172742,0.00020377,2]
[337660045,1725924638634,-3000.0,0.00020388,2]
[337660047,1725924638644,-5047.30683757,0.00020511,2]
[337660049,1725924638653,-10365.4534352,0.00020611,2]
[337660051,1725924638663,-250.0,0.00020818,2]
[337660053,1725924638673,-251.0,0.00020822,2]
[337660055,1725924638682,-250.0,0.00020876,2]
[337660057,1725924638692,-250.0,0.00020933,2]
[337660059,1725924638703,-250.0,0.0002099,2]
[337660061,1725924638713,-250.0,0.00021047,2]
[337660063,1725924638723,-250.0,0.00021104,2]
[337660065,1725924638734,-250.0,0.00021161,2]
[337660067,1725924638747,-250.0,0.00021218,2]
[337660069,1725924638757,-250.0,0.00021275,2]
[337660071,1725924638768,-250.0,0.00021332,2]
[337660073,1725924638777,-5047.30683752,0.00021363,2]
[337660075,1725924638787,-250.0,0.00021389,2]
[337660077,1725924638797,-250.0,0.00021446,2]
[337660079,1725924638807,-250.0,0.00021504,2]
[337660081,1725924638817,-250.0,0.00021561,2]
[337660083,1725924638827,-250.0,0.00021618,2]
[337660084,1725924638836,-250.0,0.00021675,2]
[337660085,1725924638846,-250.0,0.00021732,2]
[337660086,1725924638855,-1060.41546914,0.00021786,2]
[337660109,1725924639084,-250.0,0.00021789,2]
[337660111,1725924639094,-250.0,0.00021846,2]
[337660113,1725924639104,-500.0,0.00021883,2]
[337660115,1725924639114,-500.0,0.00021883,2]
[337660117,1725924639123,-500.0,0.00021883,2]
[337660119,1725924639132,-500.0,0.00021883,2]
[337660121,1725924639142,-500.0,0.00021883,2]
[337660123,1725924639152,-500.0,0.00021883,2]
[337660125,1725924639162,-500.0,0.00021883,2]
[337660127,1725924639171,-500.0,0.00021883,2]
[337660129,1725924639181,-500.0,0.00021883,2]
[337660131,1725924639190,-500.0,0.00021883,2]
[337660133,1725924639200,-500.0,0.00021883,2]
[337660135,1725924639209,-500.0,0.00021883,2]
[337660137,1725924639219,-500.0,0.00021883,2]
[337660139,1725924639229,-500.0,0.00021883,2]
[337660141,1725924639238,-500.0,0.00021883,2]
[337660143,1725924639248,-207.09272125,0.00021883,2]
[337660145,1725924639258,-500.0,0.00021883,2]
[337660147,1725924639268,-500.0,0.00021883,2]
[337660149,1725924639277,-500.0,0.00021883,2]
[337660151,1725924639287,-500.0,0.00021883,2]
[337660153,1725924639296,-500.0,0.00021883,2]
[337660156,1725924639311,-500.0,0.00021883,2]
[337660158,1725924639321,-500.0,0.00021883,2]
[337660160,1725924639330,-500.0,0.00021883,2]
[337660162,1725924639340,-500.0,0.00021883,2]
[337660164,1725924639350,-500.0,0.00021883,2]
[337660166,1725924639360,-500.0,0.00021883,2]
[337660168,1725924639371,-310.31462603,0.00021884,2]
[337660170,1725924639380,-500.0,0.00021884,2]
[337660172,1725924639390,-500.0,0.00021884,2]
[337660174,1725924639402,-500.0,0.00021884,2]
[337660176,1725924639412,-242.5356963,0.00021884,2]
[337660178,1725924639421,-500.0,0.00021884,2]
[337660180,1725924639431,-500.0,0.00021884,2]
[337660182,1725924639442,-500.0,0.00021884,2]
[337660184,1725924639452,-415.33186938,0.00021884,2]
[337660186,1725924639462,-500.0,0.00021884,2]
[337660188,1725924639473,-500.0,0.00021884,2]
[337660190,1725924639483,-500.0,0.00021884,2]
[337660192,1725924639494,-151650.219464,0.00021885,3]
[337660195,1725924639504,-129083.165617,0.00021885,3]
[337660197,1725924639513,-125832.3546693,0.00021886,3]
[337660199,1725924639526,-28189.02914218,0.00021886,3]
[337660201,1725924639538,-33770.74806059,0.00021886,3]
[337660306,1725924640769,-17222.42682995,0.00021886,3]
[337660308,1725924640781,-68236.81060954,0.00021886,3]
[337660408,1725925108545,3593.4573162,0.00019775,2]
[337660412,1725925166845,3000.0,0.00019775,2]
[337660418,1725925304339,9406.8,0.00019,10]
[337660419,1725925377951,243.4310305,0.000194,2]
[337660421,1725925410218,250.0,0.00019674,2]
[337660424,1725925414326,5702.68606053,0.00019557,2]
[337660425,1725925414639,5702.68606053,0.0001977,2]
[337660426,1725925415525,491.248192,0.00019667,2]
[337660427,1725925422010,2627.2986538,0.00019482,2]
[337660432,1725925457215,3261.0,0.00028,120]
[337660433,1725925475958,250.0,0.00019472,2]
[337660434,1725925476177,250.0,0.00019525,2]
[337660435,1725925476427,250.0,0.00019579,2]
[337660436,1725925476640,250.0,0.00019632,2]
[337660437,1725925476879,250.0,0.00019686,2]
[337660438,1725925477127,250.0,0.00019739,2]
[337660439,1725925477976,250.0,0.00019792,2]
[337660440,1725925478047,250.0,0.00019846,2]
[337660441,1725925478119,250.0,0.00019899,2]
[337660442,1725925478425,250.0,0.00019953,2]
[337660444,1725925555999,2221.2509736,0.00019277,2]
[337660448,1725925593702,10365.4534352,0.00019431,2]
[337660450,1725925649962,15511.5147,0.00019277,2]
[337660451,1725925650317,15511.5147,0.00019962,2]
[337660452,1725925667474,3000.0,0.00019274,2]
[337660453,1725925678072,24900.0,0.00019274,2]
[337660467,1725925761127,-250.0,0.00020006,2]
[337660468,1725925761151,-250.0,0.00020059,2]
[337660469,1725925761174,-250.0,0.00020113,2]
[337660470,1725925761196,-250.0,0.00020166,2]
[337660471,1725925761219,-250.0,0.0002022,2]
[337660472,1725925761241,-250.0,0.00020273,2]
[337660473,1725925761264,-6560.95285635,0.0002028,2]
[337660474,1725925761286,-300.0,0.00020324,2]
[337660475,1725925761309,-649.34612607,0.00020325,2]
[337660565,1725925833498,-399.65077914,0.00020325,2]
[337660566,1725925833508,-250.0,0.00020326,2]
[337660567,1725925833519,-902.33830877,0.00020334,2]
[337660568,1725925833529,-250.0,0.0002038,2]
[337660569,1725925833539,-250.0,0.00020433,2]
[337660570,1725925833550,-250.0,0.00020487,2]
[337660571,1725925833561,-300.0,0.00020646,2]
[337660572,1725925833571,-300.0,0.00020646,2]
[337660573,1725925833581,-4229.91091209,0.00020647,2]
[337660576,1725925838438,-1124.37470719,0.00020647,2]
[337660577,1725925838491,-10157.22908072,0.00020647,2]
[337660578,1725925838501,-251.0,0.00020822,2]
[337660579,1725925838510,-697.2428722,0.00020822,2]
[337660580,1725925838519,-4752.23838377,0.00020846,2]
[337660581,1725925838529,-4712.01021837,0.00021087,2]
[337660582,1725925838541,-1848.94263791,0.00021087,2]
[337660583,1725925838550,-4752.23838377,0.00021307,2]
[337660584,1725925838561,-4752.23838377,0.00021469,2]
[337660585,1725925838571,-40651.64834314,0.00021586,2]
[337660586,1725925838581,-1291.46095778,0.00021588,2]
[337660587,1725925838590,-158.54731335,0.00021673,2]
[337660588,1725925838600,-179.06793156,0.00021673,2]
[337660589,1725925838783,-203.81585332,0.00021673,2]
[337660590,1725925838799,-500.0,0.00021673,2]
[337660591,1725925838815,-668.5,0.00021675,3]
[337660592,1725925838825,-334.25,0.00021675,3]
[337660593,1725925838834,-167.13,0.00021675,3]
[337660594,1725925838844,-501.39,0.00021675,3]
[337660595,1725925838854,-500.0,0.00021684,2]
[337660596,1725925838863,-172.82702847,0.00021684,2]
[337660597,1725925838872,-500.0,0.00021684,2]
[337660598,1725925838883,-500.0,0.00021684,2]
[337660599,1725925838893,-626.64513124,0.00021684,2]
[337660600,1725925838902,-500.0,0.00021684,2]
[337660601,1725925838912,-500.0,0.00021684,2]
[337660602,1725925838922,-543.74814108,0.00021684,2]
[337660603,1725925838931,-500.0,0.00021684,2]
[337660604,1725925838941,-500.0,0.00021684,2]
[337660605,1725925838950,-500.0,0.00021684,2]
[337660606,1725925838960,-457.72527562,0.00021684,2]
[337660607,1725925838970,-500.0,0.00021684,2]
[337660608,1725925838979,-500.0,0.00021684,2]
[337660609,1725925838988,-500.0,0.00021684,2]
[337660610,1725925838998,-500.0,0.00021684,2]
[337660611,1725925839007,-500.0,0.00021684,2]
[337660612,1725925839017,-500.0,0.00021684,2]
[337660613,1725925839026,-500.0,0.00021684,2]
[337660614,1725925839035,-500.0,0.00021684,2]
[337660615,1725925839044,-500.0,0.00021684,2]
[337660616,1725925839053,-500.0,0.00021684,2]
[337660617,1725925839066,-500.0,0.00021684,2]
[337660618,1725925839076,-500.0,0.00021684,2]
[337660619,1725925839085,-500.0,0.00021684,2]
[337660620,1725925839095,-577.91519677,0.00021684,2]
[337660621,1725925839105,-500.0,0.00021684,2]
[337660622,1725925839114,-500.0,0.00021684,2]
[337660623,1725925839124,-500.0,0.00021684,2]
[337660624,1725925839133,-500.0,0.00021684,2]
[337660625,1725925839142,-500.0,0.00021684,2]
[337660626,1725925839151,-500.0,0.00021684,2]
[337660627,1725925839160,-500.0,0.00021684,2]
[337660628,1725925839170,-500.0,0.00021685,2]
[337660629,1725925839179,-500.0,0.00021685,2]
[337660630,1725925839189,-499.62945807,0.00021685,2]
[337660631,1725925839198,-500.0,0.00021685,2]
[337660632,1725925839207,-500.0,0.00021685,2]
[337660633,1725925839216,-500.0,0.00021685,2]
[337660635,1725925839226,-500.0,0.00021685,2]
[337660636,1725925839235,-170.95667454,0.00021685,2]
[337660637,1725925839245,-185.35980972,0.00021685,2]
[337660638,1725925839253,-500.0,0.00021685,2]
[337660639,1725925839263,-500.0,0.00021685,2]
[337660640,1725925839273,-500.0,0.00021685,2]
[337660641,1725925839282,-500.0,0.00021685,2]
[337660642,1725925839292,-500.0,0.00021685,2]
[337660643,1725925839301,-500.0,0.00021685,2]
[337660644,1725925839311,-500.0,0.00021685,2]
[337660645,1725925839320,-500.0,0.00021685,2]
[337660646,1725925839329,-500.0,0.00021685,2]
[337660647,1725925839339,-400.0,0.00021685,2]
[337660648,1725925839348,-359602.559827,0.00021686,3]
[337660649,1725925839358,-258166.331234,0.00021686,3]
[337660650,1725925839367,-151.0,0.00021688,2]
[337660651,1725925839376,-179801.279914,0.00021688,3]
[337660652,1725925839386,-129083.165617,0.00021688,3]
[337660653,1725925839395,-129083.165617,0.00021689,3]
[337660654,1725925839404,-5735.9,0.00021698,2]
[337660655,1725925839413,-2000.0,0.00021789,2]
[337660656,1725925839422,-2068.80898226,0.00021789,2]
[337660657,1725925839433,-150.112237,0.000218,4]
[337660658,1725925839442,-152.328802,0.00021864,2]
[337660659,1725925839454,-151.0,0.00021864,2]
[337660660,1725925839464,-151.0,0.00021864,2]
[337660661,1725925839473,-151.0,0.00021864,2]
[337660662,1725925839485,-151.0,0.00021864,2]
[337660663,1725925839496,-529.47506892,0.00021873,2]
[337660664,1725925839507,-500.0,0.00021873,2]
[337660665,1725925839517,-6560.95285628,0.00021893,2]
[337660666,1725925839528,-150.112233,0.000219,3]
[337660667,1725925839539,-150.112233,0.000219,5]
[337660668,1725925839550,-150.112233,0.000219,3]
[337660669,1725925839562,-150.112233,0.000219,5]
[337660670,1725925839572,-150.112233,0.000219,4]
[337660671,1725925839594,-150.112233,0.000219,2]
[337660672,1725925839607,-150.112233,0.000219,5]
[337660673,1725925839618,-150.112233,0.000219,4]
[337660674,1725925839628,-150.112233,0.000219,3]
[337660675,1725925839638,-150.112233,0.000219,5]
[337660676,1725925839647,-150.112233,0.000219,2]
[337660677,1725925839657,-150.112233,0.000219,4]
[337660678,1725925839668,-150.112233,0.000219,2]
[337660679,1725925839678,-150.112233,0.000219,3]
[337660680,1725925839688,-150.112233,0.000219,3]
[337660681,1725925839699,-150.112233,0.000219,3]
[337660682,1725925839710,-246.820548,0.000219,3]
[337660683,1725925839722,-150.112233,0.000219,2]
[337660684,1725925839733,-500.0,0.00021917,2]
[337660685,1725925839743,-151.0,0.00021917,2]
[337660686,1725925839753,-152.889851,0.00021917,2]
[337660687,1725925839762,-513.30890607,0.00021917,2]
[337660688,1725925839980,-500.0,0.00021917,2]
[337660689,1725925839991,-503.72103106,0.00021917,2]
[337660690,1725925840001,-500.0,0.00021917,2]
[337660691,1725925840012,-1555.93,0.00021917,2]
[337660692,1725925840022,-500.0,0.00021917,2]
[337660693,1725925840031,-500.0,0.00021917,2]
[337660694,1725925840042,-500.0,0.00021917,2]
[337660695,1725925840052,-500.0,0.00021917,2]
[337660696,1725925840064,-504.68984169,0.00021917,2]
[337660697,1725925840075,-151.0,0.00021917,2]
[337660698,1725925840084,-500.0,0.00021917,2]
[337660699,1725925840094,-905.47,0.00021917,2]
[337660700,1725925840104,-501.60093595,0.00021917,2]
[337660703,1725925840113,-500.0,0.00021917,2]
[337660705,1725925840123,-346.58699477,0.00021917,2]
[337660706,1725925840132,-500.0,0.00021917,2]
[337660707,1725925840148,-501.53743628,0.00021917,2]
[337660708,1725925840158,-500.0,0.00021917,2]